[Event "Titled Tuesday Blitz July 11 Early 2023"]
[White "Koshulyan, Egor A."]
[Black "Fernandez, Michael"]
[WhiteFideId "24237000"]
[BlackFideId "5803560"]
[WhiteElo "2636"]
[BlackElo "2368"]
[Result "1-0"]
[Round "1"]
[TimeControl "180+2"]
[Date "2023.07.11"]
[WhiteClock "0:00:58"]
[BlackClock "0:00:46"]
[Board "118"]

1. e4 {[%clk 0:03:00]}  c6 {[%clk 0:02:59]} 2. d4 {[%clk 0:03:00]}  d5 {[%clk 0:03:00]} 3. e5 {[%clk 0:03:00]}  Bf5 {[%clk 0:03:00]} 4. Nf3 {[%clk 0:03:00]}  e6 {[%clk 0:02:59]} 5. Be2 {[%clk 0:02:59]}  a6 {[%clk 0:02:58]} 6. O-O {[%clk 0:02:59]}  c5 {[%clk 0:02:59]} 7. c4 {[%clk 0:02:57]}  dxc4 {[%clk 0:02:55]} 8. Bxc4 {[%clk 0:02:54]}  Nh6 {[%clk 0:02:47]} 9. d5 {[%clk 0:02:48]}  exd5 {[%clk 0:02:46]} 10. Bxd5 {[%clk 0:02:47]}  Qc7 {[%clk 0:02:44]} 11. Re1 {[%clk 0:02:15]}  Nc6 {[%clk 0:02:34]} 12. e6 {[%clk 0:02:13]}  O-O-O {[%clk 0:02:32]} 13. exf7 {[%clk 0:01:18]}  Nb4 {[%clk 0:02:32]} 14. Nc3 {[%clk 0:01:16]}  Nc2 {[%clk 0:02:32]} 15. Bxh6 {[%clk 0:01:13]}  gxh6 {[%clk 0:02:19]} 16. Nh4 {[%clk 0:01:13]}  Nxe1 {[%clk 0:01:31]} 17. Nxf5 {[%clk 0:01:11]}  Qe5 {[%clk 0:01:28]} 18. Qxe1 {[%clk 0:01:10]}  Rxd5 {[%clk 0:01:08]} 19. Nxd5 {[%clk 0:01:09]}  Qxd5 {[%clk 0:01:08]} 20. Ne7+ {[%clk 0:01:00]}  Bxe7 {[%clk 0:01:05]} 21. Qxe7 {[%clk 0:01:01]}  Qd8 {[%clk 0:00:57]} 22. Qxc5+ {[%clk 0:00:59]}  Kb8 {[%clk 0:00:54]} 23. Re1 {[%clk 0:00:59]}  Rf8 {[%clk 0:00:46]} 24. Qxf8 {[%clk 0:00:58]} 1-0


[Site "https://www.chess.com"]

[Event "Titled Tuesday Blitz July 11 Early 2023"]
[White "Djokic, Mihailo"]
[Black "Buscar, Michael"]
[WhiteFideId "976440"]
[BlackFideId "2603616"]
[WhiteElo "2628"]
[BlackElo "2366"]
[Result "1-0"]
[Round "1"]
[TimeControl "180+2"]
[Date "2023.07.11"]
[WhiteClock "0:02:28"]
[BlackClock "0:02:29"]
[Board "122"]

1. e4 {[%clk 0:03:00]}  c5 {[%clk 0:02:59]} 2. Nf3 {[%clk 0:03:00]}  Nc6 {[%clk 0:03:00]} 3. d4 {[%clk 0:03:01]}  cxd4 {[%clk 0:03:00]} 4. Nxd4 {[%clk 0:03:02]}  Nf6 {[%clk 0:03:01]} 5. Nc3 {[%clk 0:03:02]}  e5 {[%clk 0:03:02]} 6. Ndb5 {[%clk 0:03:03]}  h6 {[%clk 0:03:02]} 7. Nd6+ {[%clk 0:03:01]}  Bxd6 {[%clk 0:03:02]} 8. Qxd6 {[%clk 0:03:02]}  Qe7 {[%clk 0:03:03]} 9. Qxe7+ {[%clk 0:03:02]}  Kxe7 {[%clk 0:03:03]} 10. Be3 {[%clk 0:03:03]}  Rd8 {[%clk 0:03:04]} 11. O-O-O {[%clk 0:03:03]}  d6 {[%clk 0:03:04]} 12. f3 {[%clk 0:02:53]}  Be6 {[%clk 0:03:04]} 13. Kb1 {[%clk 0:02:54]}  d5 {[%clk 0:03:00]} 14. Bc5+ {[%clk 0:02:48]}  Ke8 {[%clk 0:03:00]} 15. Nb5 {[%clk 0:02:49]}  Rd7 {[%clk 0:02:54]} 16. exd5 {[%clk 0:02:42]}  Nxd5 {[%clk 0:02:52]} 17. Bc4 {[%clk 0:02:36]}  Rad8 {[%clk 0:02:42]} 18. Bxd5 {[%clk 0:02:27]}  Rxd5 {[%clk 0:02:39]} 19. Nc7+ {[%clk 0:02:27]}  Kd7 {[%clk 0:02:29]} 20. Nxd5 {[%clk 0:02:28]} 1-0


[Site "https://www.chess.com"]

[Event "Titled Tuesday Blitz July 11 Early 2023"]
[White "Fieberg, Samuel"]
[Black "Stepanencu, Nicodim-Cosmin"]
[WhiteFideId "12901717"]
[BlackFideId "1256220"]
[WhiteElo "2366"]
[BlackElo "2628"]
[Result "0-1"]
[Round "1"]
[TimeControl "180+2"]
[Date "2023.07.11"]
[WhiteClock "0:00:03"]
[BlackClock "0:00:09"]
[Board "123"]

1. Nf3 {[%clk 0:02:58]}  a6 {[%clk 0:02:58]} 2. e4 {[%clk 0:02:58]}  c6 {[%clk 0:02:57]} 3. d4 {[%clk 0:02:25]}  d5 {[%clk 0:02:51]} 4. Nc3 {[%clk 0:02:24]}  Bg4 {[%clk 0:02:46]} 5. Be2 {[%clk 0:02:20]}  e6 {[%clk 0:02:44]} 6. O-O {[%clk 0:02:19]}  Nf6 {[%clk 0:02:41]} 7. e5 {[%clk 0:02:19]}  Nfd7 {[%clk 0:02:38]} 8. h3 {[%clk 0:02:18]}  Bh5 {[%clk 0:02:37]} 9. Nb1 {[%clk 0:02:12]}  c5 {[%clk 0:02:35]} 10. c3 {[%clk 0:02:13]}  Nc6 {[%clk 0:02:34]} 11. a3 {[%clk 0:02:08]}  Rc8 {[%clk 0:02:33]} 12. b4 {[%clk 0:02:08]}  cxd4 {[%clk 0:02:32]} 13. cxd4 {[%clk 0:02:08]}  Be7 {[%clk 0:02:30]} 14. Nbd2 {[%clk 0:02:07]}  O-O {[%clk 0:02:25]} 15. Nb3 {[%clk 0:02:07]}  Nb6 {[%clk 0:02:22]} 16. Nc5 {[%clk 0:02:02]}  Qc7 {[%clk 0:02:17]} 17. Bf4 {[%clk 0:01:48]}  Nc4 {[%clk 0:02:15]} 18. Bxc4 {[%clk 0:01:33]}  dxc4 {[%clk 0:02:16]} 19. d5 {[%clk 0:01:34]}  exd5 {[%clk 0:02:10]} 20. Qxd5 {[%clk 0:01:29]}  Rfd8 {[%clk 0:02:03]} 21. Qxc4 {[%clk 0:01:26]}  Bxf3 {[%clk 0:02:02]} 22. e6 {[%clk 0:01:20]}  Bd6 {[%clk 0:01:40]} 23. exf7+ {[%clk 0:01:18]}  Qxf7 {[%clk 0:01:41]} 24. Qxf7+ {[%clk 0:01:15]}  Kxf7 {[%clk 0:01:42]} 25. Bxd6 {[%clk 0:01:09]}  Rxd6 {[%clk 0:01:21]} 26. gxf3 {[%clk 0:01:09]}  Nd4 {[%clk 0:01:20]} 27. Rfd1 {[%clk 0:00:59]}  a5 {[%clk 0:01:16]} 28. Nxb7 {[%clk 0:00:57]}  Nxf3+ {[%clk 0:01:02]} 29. Kf1 {[%clk 0:00:54]}  Nd2+ {[%clk 0:00:46]} 30. Kg2 {[%clk 0:00:50]}  Rg6+ {[%clk 0:00:46]} 31. Kh1 {[%clk 0:00:49]}  Rc2 {[%clk 0:00:46]} 32. Rac1 {[%clk 0:00:43]}  Ra2 {[%clk 0:00:44]} 33. bxa5 {[%clk 0:00:36]}  Rxa3 {[%clk 0:00:38]} 34. Kh2 {[%clk 0:00:32]}  Nf3+ {[%clk 0:00:33]} 35. Kh1 {[%clk 0:00:31]}  Ne5 {[%clk 0:00:19]} 36. Nd6+ {[%clk 0:00:28]}  Ke6 {[%clk 0:00:18]} 37. Kh2 {[%clk 0:00:27]}  Nf3+ {[%clk 0:00:18]} 38. Kh1 {[%clk 0:00:27]}  Ng1 {[%clk 0:00:12]} 39. Re1+ {[%clk 0:00:26]}  Kd7 {[%clk 0:00:10]} 40. f3 {[%clk 0:00:18]}  Rxf3 {[%clk 0:00:10]} 41. Rc7+ {[%clk 0:00:09]}  Kxd6 {[%clk 0:00:09]} 42. Rc6+ {[%clk 0:00:06]}  Kxc6 {[%clk 0:00:09]} 43. Rc1+ {[%clk 0:00:06]}  Kd6 {[%clk 0:00:08]} 44. Rd1+ {[%clk 0:00:05]}  Ke5 {[%clk 0:00:08]} 45. Re1+ {[%clk 0:00:04]}  Kf4 {[%clk 0:00:09]} 46. Rf1 {[%clk 0:00:04]}  Rxf1 {[%clk 0:00:08]} 47. Kh2 {[%clk 0:00:03]}  Nf3# {[%clk 0:00:09]} 0-1


[Site "https://www.chess.com"]

[Event "Titled Tuesday Blitz July 11 Early 2023"]
[White "Niekras, Dawid"]
[Black "Rosh Jain"]
[WhiteFideId "1160451"]
[BlackFideId "25789465"]
[WhiteElo "2628"]
[BlackElo "2366"]
[Result "1/2-1/2"]
[Round "1"]
[TimeControl "180+2"]
[Date "2023.07.11"]
[WhiteClock "0:00:07"]
[BlackClock "0:01:45"]
[Board "124"]

1. e4 {[%clk 0:03:00]}  c5 {[%clk 0:03:00]} 2. Be2 {[%clk 0:02:58]}  Nc6 {[%clk 0:02:59]} 3. f4 {[%clk 0:02:59]}  d5 {[%clk 0:02:58]} 4. d3 {[%clk 0:02:59]}  dxe4 {[%clk 0:02:58]} 5. dxe4 {[%clk 0:03:00]}  Qxd1+ {[%clk 0:02:58]} 6. Bxd1 {[%clk 0:03:01]}  e5 {[%clk 0:02:58]} 7. f5 {[%clk 0:02:56]}  Nf6 {[%clk 0:02:57]} 8. Nd2 {[%clk 0:02:53]}  Be7 {[%clk 0:02:55]} 9. Ngf3 {[%clk 0:02:53]}  O-O {[%clk 0:02:55]} 10. c3 {[%clk 0:02:54]}  b6 {[%clk 0:02:55]} 11. h3 {[%clk 0:02:47]}  Ba6 {[%clk 0:02:55]} 12. Be2 {[%clk 0:02:42]}  Bxe2 {[%clk 0:02:54]} 13. Kxe2 {[%clk 0:02:43]}  Rfd8 {[%clk 0:02:54]} 14. g4 {[%clk 0:02:42]}  Rd7 {[%clk 0:02:52]} 15. Rg1 {[%clk 0:02:13]}  Rad8 {[%clk 0:02:52]} 16. g5 {[%clk 0:02:14]}  Nh5 {[%clk 0:02:51]} 17. Nc4 {[%clk 0:02:15]}  f6 {[%clk 0:02:48]} 18. a4 {[%clk 0:01:58]}  Rd3 {[%clk 0:02:35]} 19. Be3 {[%clk 0:01:22]}  Kf8 {[%clk 0:02:30]} 20. h4 {[%clk 0:01:10]}  Ke8 {[%clk 0:02:27]} 21. gxf6 {[%clk 0:01:02]}  Bxf6 {[%clk 0:02:26]} 22. Ng5 {[%clk 0:00:33]}  Nf4+ {[%clk 0:02:14]} 23. Bxf4 {[%clk 0:00:33]}  exf4 {[%clk 0:02:15]} 24. Rgf1 {[%clk 0:00:20]}  Ne5 {[%clk 0:02:12]} 25. Nxe5 {[%clk 0:00:18]}  Bxe5 {[%clk 0:02:13]} 26. Nf3 {[%clk 0:00:17]}  Re3+ {[%clk 0:02:13]} 27. Kf2 {[%clk 0:00:17]}  Bf6 {[%clk 0:02:13]} 28. Rad1 {[%clk 0:00:14]}  Rxd1 {[%clk 0:02:09]} 29. Rxd1 {[%clk 0:00:14]}  Rxe4 {[%clk 0:02:09]} 30. a5 {[%clk 0:00:15]}  bxa5 {[%clk 0:02:09]} 31. Ra1 {[%clk 0:00:14]}  a4 {[%clk 0:02:09]} 32. Ng5 {[%clk 0:00:14]}  Bxg5 {[%clk 0:02:08]} 33. hxg5 {[%clk 0:00:14]}  Re5 {[%clk 0:02:09]} 34. Rxa4 {[%clk 0:00:14]}  Rxf5 {[%clk 0:02:09]} 35. Kf3 {[%clk 0:00:11]}  Rxg5 {[%clk 0:02:09]} 36. Kxf4 {[%clk 0:00:09]}  Rg2 {[%clk 0:02:08]} 37. Rxa7 {[%clk 0:00:10]}  Kf8 {[%clk 0:02:07]} 38. Ke5 {[%clk 0:00:02]}  Rxb2 {[%clk 0:02:06]} 39. Kd6 {[%clk 0:00:03]}  Rc2 {[%clk 0:02:04]} 40. Ke6 {[%clk 0:00:03]}  g6 {[%clk 0:01:57]} 41. Rxh7 {[%clk 0:00:01]}  Rxc3 {[%clk 0:01:56]} 42. Kf6 {[%clk 0:00:02]}  Rf3+ {[%clk 0:01:54]} 43. Kxg6 {[%clk 0:00:02]}  c4 {[%clk 0:01:54]} 44. Rc7 {[%clk 0:00:02]}  c3 {[%clk 0:01:54]} 45. Kg5 {[%clk 0:00:02]}  Ke8 {[%clk 0:01:53]} 46. Kg4 {[%clk 0:00:03]}  Rd3 {[%clk 0:01:51]} 47. Kf4 {[%clk 0:00:03]}  Kd8 {[%clk 0:01:51]} 48. Ke4 {[%clk 0:00:03]}  Rh3 {[%clk 0:01:49]} 49. Rc5 {[%clk 0:00:04]}  Kd7 {[%clk 0:01:47]} 50. Kd4 {[%clk 0:00:04]}  Kd6 {[%clk 0:01:45]} 51. Rxc3 {[%clk 0:00:04]}  Rh4+ {[%clk 0:01:45]} 52. Kd3 {[%clk 0:00:05]}  Kd5 {[%clk 0:01:45]} 53. Rc8 {[%clk 0:00:05]}  Rh3+ {[%clk 0:01:45]} 54. Ke2 {[%clk 0:00:06]}  Kd4 {[%clk 0:01:45]} 55. Rd8+ {[%clk 0:00:06]}  Kc3 {[%clk 0:01:45]} 56. Rc8+ {[%clk 0:00:07]}  Kb2 {[%clk 0:01:44]} 57. Rb8+ {[%clk 0:00:07]}  Rb3 {[%clk 0:01:44]} 58. Rxb3+ {[%clk 0:00:07]}  Kxb3 {[%clk 0:01:45]} 1/2-1/2


[Site "https://www.chess.com"]

[Event "Titled Tuesday Blitz July 11 Early 2023"]
[White "Molina Carretero, Daniel"]
[Black "Ince, Taylan Ruzgar"]
[WhiteFideId "32071914"]
[BlackFideId "44513089"]
[WhiteElo "2366"]
[BlackElo "2627"]
[Result "1-0"]
[Round "1"]
[TimeControl "180+2"]
[Date "2023.07.11"]
[WhiteClock "0:00:26"]
[BlackClock "0:00:18"]
[Board "125"]

1. c4 {[%clk 0:02:59]}  e5 {[%clk 0:02:55]} 2. g3 {[%clk 0:03:00]}  Nf6 {[%clk 0:02:53]} 3. Bg2 {[%clk 0:03:00]}  g6 {[%clk 0:02:52]} 4. Nc3 {[%clk 0:02:57]}  Bg7 {[%clk 0:02:52]} 5. Nf3 {[%clk 0:02:57]}  d6 {[%clk 0:02:50]} 6. O-O {[%clk 0:02:56]}  O-O {[%clk 0:02:50]} 7. d4 {[%clk 0:02:54]}  exd4 {[%clk 0:02:49]} 8. Nxd4 {[%clk 0:02:54]}  Re8 {[%clk 0:02:47]} 9. h3 {[%clk 0:02:46]}  Nbd7 {[%clk 0:02:09]} 10. b3 {[%clk 0:02:43]}  Nc5 {[%clk 0:02:08]} 11. Bb2 {[%clk 0:02:40]}  a5 {[%clk 0:02:05]} 12. Qc2 {[%clk 0:02:31]}  Bd7 {[%clk 0:02:02]} 13. Rad1 {[%clk 0:02:28]}  Qc8 {[%clk 0:02:00]} 14. Kh2 {[%clk 0:02:28]}  Re5 {[%clk 0:01:58]} 15. Nf3 {[%clk 0:01:24]}  Rh5 {[%clk 0:01:56]} 16. Ng1 {[%clk 0:01:25]}  Bc6 {[%clk 0:01:09]} 17. Nd5 {[%clk 0:01:14]}  Bxd5 {[%clk 0:01:07]} 18. cxd5 {[%clk 0:01:13]}  Ng4+ {[%clk 0:01:02]} 19. Kh1 {[%clk 0:01:11]}  Qf5 {[%clk 0:00:59]} 20. Qxf5 {[%clk 0:01:05]}  gxf5 {[%clk 0:00:58]} 21. Bxg7 {[%clk 0:01:04]}  Kxg7 {[%clk 0:00:57]} 22. Bf3 {[%clk 0:00:55]}  Rh6 {[%clk 0:00:57]} 23. Kg2 {[%clk 0:00:49]}  Ne5 {[%clk 0:00:57]} 24. Rd4 {[%clk 0:00:45]}  Re8 {[%clk 0:00:52]} 25. Rfd1 {[%clk 0:00:41]}  Rf6 {[%clk 0:00:45]} 26. h4 {[%clk 0:00:40]}  Nxf3 {[%clk 0:00:39]} 27. exf3 {[%clk 0:00:41]}  h6 {[%clk 0:00:33]} 28. Kf1 {[%clk 0:00:39]}  Nd7 {[%clk 0:00:31]} 29. Nh3 {[%clk 0:00:36]}  Ne5 {[%clk 0:00:31]} 30. Kg2 {[%clk 0:00:35]}  Ng6 {[%clk 0:00:30]} 31. h5 {[%clk 0:00:33]}  Ne5 {[%clk 0:00:23]} 32. Nf4 {[%clk 0:00:33]}  Nd7 {[%clk 0:00:23]} 33. Kf1 {[%clk 0:00:31]}  Ne5 {[%clk 0:00:19]} 34. Kg2 {[%clk 0:00:26]}  Ree6 {[%clk 0:00:18]} 35. dxe6 {[%clk 0:00:26]} 1-0


[Site "https://www.chess.com"]

[Event "Titled Tuesday Blitz July 11 Early 2023"]
[White "Ezat, Mohamed"]
[Black "Goswami, Vedant"]
[WhiteFideId "10600906"]
[BlackFideId "5003725"]
[WhiteElo "2624"]
[BlackElo "2366"]
[Result "0-1"]
[Round "1"]
[TimeControl "180+2"]
[Date "2023.07.11"]
[WhiteClock "0:00:06"]
[BlackClock "0:00:12"]
[Board "126"]

1. d4 {[%clk 0:02:59]}  Nf6 {[%clk 0:02:57]} 2. c4 {[%clk 0:02:58]}  e6 {[%clk 0:02:55]} 3. Nc3 {[%clk 0:02:58]}  Bb4 {[%clk 0:02:54]} 4. f3 {[%clk 0:02:56]}  d5 {[%clk 0:02:53]} 5. a3 {[%clk 0:02:43]}  Be7 {[%clk 0:02:52]} 6. e4 {[%clk 0:02:39]}  c5 {[%clk 0:02:48]} 7. e5 {[%clk 0:02:30]}  Nfd7 {[%clk 0:02:41]} 8. cxd5 {[%clk 0:02:29]}  exd5 {[%clk 0:02:30]} 9. f4 {[%clk 0:02:26]}  Nc6 {[%clk 0:02:27]} 10. Nf3 {[%clk 0:02:24]}  cxd4 {[%clk 0:02:25]} 11. Nxd4 {[%clk 0:02:23]}  Nc5 {[%clk 0:02:24]} 12. Bb5 {[%clk 0:02:21]}  O-O {[%clk 0:02:06]} 13. Bxc6 {[%clk 0:02:06]}  bxc6 {[%clk 0:02:04]} 14. Nxc6 {[%clk 0:02:05]}  Bh4+ {[%clk 0:02:00]} 15. g3 {[%clk 0:01:55]}  Qc7 {[%clk 0:02:00]} 16. Nd4 {[%clk 0:01:49]}  Ba6 {[%clk 0:01:44]} 17. Nxd5 {[%clk 0:01:40]}  Qd7 {[%clk 0:01:37]} 18. Nb4 {[%clk 0:01:36]}  Nd3+ {[%clk 0:01:18]} 19. Nxd3 {[%clk 0:01:36]}  Qxd4 {[%clk 0:01:18]} 20. Nf2 {[%clk 0:00:50]}  Qxd1+ {[%clk 0:00:59]} 21. Nxd1 {[%clk 0:00:45]}  Be7 {[%clk 0:00:56]} 22. Be3 {[%clk 0:00:45]}  Rfd8 {[%clk 0:00:49]} 23. Nc3 {[%clk 0:00:45]}  Rd3 {[%clk 0:00:48]} 24. Kf2 {[%clk 0:00:46]}  Rb8 {[%clk 0:00:46]} 25. Rab1 {[%clk 0:00:40]}  h5 {[%clk 0:00:42]} 26. Rhd1 {[%clk 0:00:39]}  Rb3 {[%clk 0:00:30]} 27. Bxa7 {[%clk 0:00:31]}  Bxa3 {[%clk 0:00:26]} 28. bxa3 {[%clk 0:00:20]}  Rbxc3 {[%clk 0:00:24]} 29. Rxd3 {[%clk 0:00:19]}  Bxd3 {[%clk 0:00:22]} 30. Ra1 {[%clk 0:00:17]}  Rc2+ {[%clk 0:00:21]} 31. Ke3 {[%clk 0:00:17]}  Ba6 {[%clk 0:00:20]} 32. a4 {[%clk 0:00:16]}  Rxh2 {[%clk 0:00:19]} 33. a5 {[%clk 0:00:14]}  h4 {[%clk 0:00:19]} 34. gxh4 {[%clk 0:00:14]}  Rxh4 {[%clk 0:00:18]} 35. Rc1 {[%clk 0:00:09]}  Rh3+ {[%clk 0:00:18]} 36. Kd4 {[%clk 0:00:09]}  Rf3 {[%clk 0:00:16]} 37. Rc6 {[%clk 0:00:05]}  Bf1 {[%clk 0:00:15]} 38. a6 {[%clk 0:00:03]}  Rxf4+ {[%clk 0:00:14]} 39. Kc5 {[%clk 0:00:03]}  Ra4 {[%clk 0:00:14]} 40. Kb6 {[%clk 0:00:03]}  Rb4+ {[%clk 0:00:14]} 41. Kc7 {[%clk 0:00:03]}  Ra4 {[%clk 0:00:14]} 42. Kb7 {[%clk 0:00:03]}  Rb4+ {[%clk 0:00:14]} 43. Bb6 {[%clk 0:00:04]}  Ra4 {[%clk 0:00:13]} 44. a7 {[%clk 0:00:05]}  Bg2 {[%clk 0:00:13]} 45. Kc7 {[%clk 0:00:03]}  Bxc6 {[%clk 0:00:12]} 46. Kxc6 {[%clk 0:00:04]}  g5 {[%clk 0:00:12]} 47. Kb7 {[%clk 0:00:03]}  Kg7 {[%clk 0:00:11]} 48. a8=Q {[%clk 0:00:04]}  Rxa8 {[%clk 0:00:09]} 49. Kxa8 {[%clk 0:00:05]}  Kg6 {[%clk 0:00:10]} 50. Bd4 {[%clk 0:00:06]}  Kf5 {[%clk 0:00:10]} 51. Kb7 {[%clk 0:00:07]}  Ke4 {[%clk 0:00:10]} 52. Bb6 {[%clk 0:00:06]}  g4 {[%clk 0:00:10]} 53. Kc6 {[%clk 0:00:06]}  Kxe5 {[%clk 0:00:10]} 54. Kc5 {[%clk 0:00:06]}  f5 {[%clk 0:00:11]} 55. Kc4 {[%clk 0:00:06]}  Ke4 {[%clk 0:00:11]} 56. Kc3 {[%clk 0:00:06]}  f4 {[%clk 0:00:11]} 57. Kd2 {[%clk 0:00:06]}  Kf3 {[%clk 0:00:12]} 58. Ke1 {[%clk 0:00:07]}  Kg2 {[%clk 0:00:12]} 59. Ke2 {[%clk 0:00:07]}  f3+ {[%clk 0:00:12]} 60. Ke1 {[%clk 0:00:07]}  g3 {[%clk 0:00:12]} 61. Be3 {[%clk 0:00:05]}  f2+ {[%clk 0:00:12]} 62. Bxf2 {[%clk 0:00:06]}  gxf2+ {[%clk 0:00:12]} 63. Kd2 {[%clk 0:00:07]}  f1=Q {[%clk 0:00:12]} 64. Kc2 {[%clk 0:00:06]}  Kf3 {[%clk 0:00:12]} 0-1


[Site "https://www.chess.com"]

[Event "Titled Tuesday Blitz July 11 Early 2023"]
[White "Alahakoon, Isuru"]
[Black "Wadsworth, Matthew J"]
[WhiteFideId "9900993"]
[BlackFideId "415804"]
[WhiteElo "2363"]
[BlackElo "2624"]
[Result "0-1"]
[Round "1"]
[TimeControl "180+2"]
[Date "2023.07.11"]
[WhiteClock "0:00:29"]
[BlackClock "0:00:38"]
[Board "127"]

1. Nf3 {[%clk 0:02:57]}  Nf6 {[%clk 0:02:59]} 2. d4 {[%clk 0:02:56]}  c5 {[%clk 0:02:59]} 3. e3 {[%clk 0:02:55]}  e6 {[%clk 0:02:53]} 4. Bd3 {[%clk 0:02:54]}  b6 {[%clk 0:02:51]} 5. O-O {[%clk 0:02:53]}  Bb7 {[%clk 0:02:51]} 6. b3 {[%clk 0:02:53]}  Be7 {[%clk 0:02:45]} 7. Bb2 {[%clk 0:02:53]}  O-O {[%clk 0:02:44]} 8. Nbd2 {[%clk 0:02:52]}  Nc6 {[%clk 0:02:33]} 9. a3 {[%clk 0:02:49]}  Rc8 {[%clk 0:02:31]} 10. Qe2 {[%clk 0:02:41]}  d5 {[%clk 0:02:17]} 11. Rad1 {[%clk 0:02:36]}  cxd4 {[%clk 0:02:10]} 12. exd4 {[%clk 0:02:33]}  Qc7 {[%clk 0:02:01]} 13. Rfe1 {[%clk 0:02:31]}  Rfd8 {[%clk 0:01:50]} 14. Ne5 {[%clk 0:02:30]}  Nxe5 {[%clk 0:01:42]} 15. dxe5 {[%clk 0:02:28]}  Ne4 {[%clk 0:01:40]} 16. Bxe4 {[%clk 0:02:02]}  dxe4 {[%clk 0:01:39]} 17. c4 {[%clk 0:01:55]}  b5 {[%clk 0:01:10]} 18. Nxe4 {[%clk 0:01:26]}  Rxd1 {[%clk 0:00:58]} 19. Rxd1 {[%clk 0:01:23]}  bxc4 {[%clk 0:00:57]} 20. bxc4 {[%clk 0:01:13]}  Qc6 {[%clk 0:00:47]} 21. Rd4 {[%clk 0:00:34]}  Bc5 {[%clk 0:00:39]} 22. Nxc5 {[%clk 0:00:29]}  Qxg2# {[%clk 0:00:38]} 0-1


[Site "https://www.chess.com"]

[Event "Titled Tuesday Blitz July 11 Early 2023"]
[White "NLLO777"]
[Black "Bashirli, Saadat"]
[BlackFideId "13429990"]
[WhiteElo "2610"]
[BlackElo "2346"]
[Result "1-0"]
[Round "1"]
[TimeControl "180+2"]
[Date "2023.07.11"]
[WhiteClock "0:00:09"]
[BlackClock "0:00:08"]
[Board "132"]

1. Nf3 {[%clk 0:03:00]}  Nf6 {[%clk 0:02:56]} 2. g3 {[%clk 0:03:00]}  g6 {[%clk 0:02:57]} 3. Bg2 {[%clk 0:03:01]}  Bg7 {[%clk 0:02:57]} 4. O-O {[%clk 0:03:02]}  O-O {[%clk 0:02:58]} 5. b3 {[%clk 0:03:02]}  d5 {[%clk 0:02:58]} 6. Bb2 {[%clk 0:03:03]}  c6 {[%clk 0:02:58]} 7. c4 {[%clk 0:03:02]}  Bf5 {[%clk 0:02:58]} 8. d3 {[%clk 0:03:01]}  Re8 {[%clk 0:02:54]} 9. Nbd2 {[%clk 0:02:54]}  Na6 {[%clk 0:02:49]} 10. a3 {[%clk 0:02:52]}  Nc7 {[%clk 0:02:48]} 11. b4 {[%clk 0:02:51]}  dxc4 {[%clk 0:02:48]} 12. Nxc4 {[%clk 0:02:51]}  Be6 {[%clk 0:02:45]} 13. Qc2 {[%clk 0:02:49]}  Bxc4 {[%clk 0:02:41]} 14. dxc4 {[%clk 0:02:45]}  Qd7 {[%clk 0:02:37]} 15. Rfd1 {[%clk 0:02:40]}  Qe6 {[%clk 0:02:34]} 16. Nd4 {[%clk 0:02:36]}  Qg4 {[%clk 0:02:32]} 17. h3 {[%clk 0:02:28]}  Qh5 {[%clk 0:02:08]} 18. g4 {[%clk 0:02:18]}  Qg5 {[%clk 0:02:00]} 19. Nf3 {[%clk 0:02:09]}  Qf4 {[%clk 0:01:33]} 20. Be5 {[%clk 0:02:06]}  Qe4 {[%clk 0:01:33]} 21. Qxe4 {[%clk 0:01:39]}  Nxe4 {[%clk 0:01:34]} 22. Bxc7 {[%clk 0:01:38]}  Bxa1 {[%clk 0:01:31]} 23. Rxa1 {[%clk 0:01:39]}  Rac8 {[%clk 0:01:29]} 24. Bf4 {[%clk 0:01:37]}  Nc3 {[%clk 0:01:27]} 25. Bf1 {[%clk 0:01:19]}  f6 {[%clk 0:01:24]} 26. Rc1 {[%clk 0:01:11]}  Ne4 {[%clk 0:01:20]} 27. Bg2 {[%clk 0:00:57]}  e5 {[%clk 0:01:19]} 28. Be3 {[%clk 0:00:55]}  Nd6 {[%clk 0:00:57]} 29. Bxa7 {[%clk 0:00:51]}  Ra8 {[%clk 0:00:56]} 30. Bc5 {[%clk 0:00:47]}  Ne4 {[%clk 0:00:54]} 31. Be3 {[%clk 0:00:22]}  Rxa3 {[%clk 0:00:51]} 32. Nd2 {[%clk 0:00:20]}  Nxd2 {[%clk 0:00:51]} 33. Bxd2 {[%clk 0:00:21]}  Ra2 {[%clk 0:00:48]} 34. Be3 {[%clk 0:00:18]}  Rxe2 {[%clk 0:00:46]} 35. b5 {[%clk 0:00:19]}  Rc8 {[%clk 0:00:44]} 36. bxc6 {[%clk 0:00:17]}  bxc6 {[%clk 0:00:44]} 37. Be4 {[%clk 0:00:17]}  Rb2 {[%clk 0:00:40]} 38. c5 {[%clk 0:00:16]}  Rb4 {[%clk 0:00:39]} 39. Bf3 {[%clk 0:00:12]}  Kf7 {[%clk 0:00:35]} 40. Ra1 {[%clk 0:00:12]}  Rb7 {[%clk 0:00:34]} 41. Ra6 {[%clk 0:00:10]}  Rbc7 {[%clk 0:00:33]} 42. Bd2 {[%clk 0:00:10]}  f5 {[%clk 0:00:20]} 43. Ba5 {[%clk 0:00:09]}  Rb7 {[%clk 0:00:19]} 44. Rxc6 {[%clk 0:00:05]}  Rb1+ {[%clk 0:00:17]} 45. Kg2 {[%clk 0:00:05]}  Ra8 {[%clk 0:00:14]} 46. Rc7+ {[%clk 0:00:05]}  Kf6 {[%clk 0:00:14]} 47. Bxa8 {[%clk 0:00:06]}  Ra1 {[%clk 0:00:14]} 48. g5+ {[%clk 0:00:05]}  Kxg5 {[%clk 0:00:14]} 49. Bd2+ {[%clk 0:00:06]}  f4 {[%clk 0:00:13]} 50. Be4 {[%clk 0:00:05]}  Ra2 {[%clk 0:00:12]} 51. Rd7 {[%clk 0:00:06]}  h5 {[%clk 0:00:11]} 52. c6 {[%clk 0:00:06]}  Kh4 {[%clk 0:00:09]} 53. c7 {[%clk 0:00:06]}  f3+ {[%clk 0:00:06]} 54. Bxf3 {[%clk 0:00:06]}  e4 {[%clk 0:00:05]} 55. Bxe4 {[%clk 0:00:06]}  g5 {[%clk 0:00:05]} 56. c8=Q {[%clk 0:00:06]}  Ra4 {[%clk 0:00:05]} 57. Bxg5+ {[%clk 0:00:06]}  Kxg5 {[%clk 0:00:04]} 58. Qg8+ {[%clk 0:00:06]}  Kf4 {[%clk 0:00:05]} 59. Rf7+ {[%clk 0:00:05]}  Kxe4 {[%clk 0:00:05]} 60. Qe8+ {[%clk 0:00:05]}  Kd4 {[%clk 0:00:05]} 61. Qxa4+ {[%clk 0:00:06]}  Ke5 {[%clk 0:00:05]} 62. Qe8+ {[%clk 0:00:06]}  Kd6 {[%clk 0:00:05]} 63. Rd7+ {[%clk 0:00:07]}  Kc6 {[%clk 0:00:06]} 64. Qc8+ {[%clk 0:00:08]}  Kb6 {[%clk 0:00:07]} 65. Rb7+ {[%clk 0:00:08]}  Ka6 {[%clk 0:00:08]} 66. Qa8# {[%clk 0:00:09]} 1-0


[Site "https://www.chess.com"]